[Event "*** SCC Grand Prix: Titled Tuesday Blitz"]
[Site "Chess.com"]
[Date "2020.06.09"]
[Round "8"]
[White "kleopl"]
[Black "bulletteemo"]
[Result "0-1"]
[WhiteElo "2357"]
[BlackElo "2543"]
[TimeControl "180+1"]
[EndTime "10:35:21 PDT"]
[Termination "bulletteemo won by resignation"]

1. c4 {[%clk 0:03:00.9]} 1... e5 {[%clk 0:02:54.2]} 2. Nc3 {[%clk 0:03:00.2]}
2... Nf6 {[%clk 0:02:51.5]} 3. Nf3 {[%clk 0:02:59.5]} 3... Nc6 {[%clk
0:02:47.4]} 4. e4 {[%clk 0:02:59.6]} 4... Bb4 {[%clk 0:02:46.5]} 5. d3 {[%clk
0:02:58.7]} 5... a5 {[%clk 0:02:46.7]} 6. a3 {[%clk 0:02:55.6]} 6... Bc5 {[%clk
0:02:46.4]} 7. Nxe5 {[%clk 0:02:48.9]} 7... Bxf2+ {[%clk 0:02:37.4]} 8. Kxf2
{[%clk 0:02:48.2]} 8... Nxe5 {[%clk 0:02:32.4]} 9. d4 {[%clk 0:02:48.2]} 9...
Nfg4+ {[%clk 0:02:18.1]} 10. Ke1 {[%clk 0:02:46.4]} 10... Qh4+ {[%clk
0:02:11.9]} 11. g3 {[%clk 0:02:45.3]} 11... Qf6 {[%clk 0:02:09.4]} 12. Bf4
{[%clk 0:02:45.3]} 12... d6 {[%clk 0:01:58.8]} 13. Nd5 {[%clk 0:02:37.8]} 13...
Qd8 {[%clk 0:01:52.5]} 14. dxe5 {[%clk 0:02:36.3]} 14... dxe5 {[%clk 0:01:53.4]}
15. Bd2 {[%clk 0:02:30.1]} 15... O-O {[%clk 0:01:39.2]} 16. Be2 {[%clk 0:02:25]}
16... h5 {[%clk 0:01:32.7]} 17. h3 {[%clk 0:02:21]} 17... c6 {[%clk 0:01:31]}
18. hxg4 {[%clk 0:02:16.9]} 18... cxd5 {[%clk 0:01:30.9]} 19. cxd5 {[%clk
0:02:16.7]} 19... hxg4 {[%clk 0:01:30.2]} 20. Bxg4 {[%clk 0:02:12.5]} 20... g6
{[%clk 0:01:24.9]} 21. Rc1 {[%clk 0:02:08.8]} 21... Qb6 {[%clk 0:01:24]} 22. Rc2
{[%clk 0:01:58.7]} 22... Qd4 {[%clk 0:01:20.5]} 23. Qe2 {[%clk 0:01:53]} 23...
b6 {[%clk 0:00:55.9]} 24. Bc3 {[%clk 0:01:49.9]} 24... Qa4 {[%clk 0:00:53.3]}
25. Bxe5 {[%clk 0:01:40.9]} 25... f6 {[%clk 0:00:51.5]} 26. Bxc8 {[%clk
0:01:35.3]} 26... Raxc8 {[%clk 0:00:50]} 27. Rxc8 {[%clk 0:01:30.5]} 27... Rxc8
{[%clk 0:00:50.9]} 28. Bc3 {[%clk 0:01:25.9]} 28... Re8 {[%clk 0:00:45.2]} 29.
Rh4 {[%clk 0:01:16.6]} 29... g5 {[%clk 0:00:18.8]} 30. Rh8+ {[%clk 0:01:05]}
30... Kxh8 {[%clk 0:00:17.1]} 31. Qh5+ {[%clk 0:01:04.9]} 31... Kg7 {[%clk
0:00:11.3]} 32. Qxg5+ {[%clk 0:00:57.9]} 32... Kh7 {[%clk 0:00:11.4]} 33. Qh5+
{[%clk 0:00:56.4]} 33... Kg7 {[%clk 0:00:10]} 34. Qxe8 {[%clk 0:00:56.4]} 34...
Qxe8 {[%clk 0:00:08.8]} 35. e5 {[%clk 0:00:26.2]} 35... fxe5 {[%clk 0:00:08]}
36. Ke2 {[%clk 0:00:26.5]} 36... Qb5+ {[%clk 0:00:07.7]} 37. Ke3 {[%clk
0:00:26.4]} 37... Qxd5 {[%clk 0:00:07.8]} 0-1

[Event "*** SCC Grand Prix: Titled Tuesday Blitz"]
[Site "Chess.com"]
[Date "2020.06.09"]
[Round "8"]
[White "BocharovD"]
[Black "bait_or_mate"]
[Result "1-0"]
[WhiteElo "2762"]
[BlackElo "2598"]
[TimeControl "180+1"]
[EndTime "10:35:22 PDT"]
[Termination "BocharovD won by resignation"]

1. c4 {[%clk 0:03:00.9]} 1... e5 {[%clk 0:02:59.3]} 2. d3 {[%clk 0:02:59.1]}
2... Nc6 {[%clk 0:02:58.3]} 3. Nf3 {[%clk 0:02:58.2]} 3... g6 {[%clk 0:02:58.5]}
4. Nc3 {[%clk 0:02:57.5]} 4... Bg7 {[%clk 0:02:57.7]} 5. g3 {[%clk 0:02:58]}
5... Nge7 {[%clk 0:02:57.5]} 6. Bg2 {[%clk 0:02:58.5]} 6... O-O {[%clk
0:02:56.5]} 7. O-O {[%clk 0:02:58.5]} 7... d6 {[%clk 0:02:54.2]} 8. Rb1 {[%clk
0:02:58.2]} 8... h6 {[%clk 0:02:52.2]} 9. b4 {[%clk 0:02:57.2]} 9... Be6 {[%clk
0:02:52.5]} 10. b5 {[%clk 0:02:49.7]} 10... Nb8 {[%clk 0:02:52.4]} 11. Nd2
{[%clk 0:02:40.9]} 11... c6 {[%clk 0:02:50.5]} 12. Ba3 {[%clk 0:02:39.8]} 12...
a6 {[%clk 0:02:44.2]} 13. bxc6 {[%clk 0:02:35.5]} 13... bxc6 {[%clk 0:02:34]}
14. Qa4 {[%clk 0:02:30.7]} 14... Qc7 {[%clk 0:02:23.1]} 15. Rfc1 {[%clk
0:02:27.9]} 15... Nd7 {[%clk 0:02:19.4]} 16. Nd5 {[%clk 0:02:24.8]} 16... Bxd5
{[%clk 0:02:11.7]} 17. cxd5 {[%clk 0:02:24.5]} 17... c5 {[%clk 0:02:12.3]} 18.
Nc4 {[%clk 0:02:25]} 18... Rfb8 {[%clk 0:02:03.1]} 19. Qa5 {[%clk 0:02:24.6]}
19... Qxa5 {[%clk 0:01:27.1]} 20. Nxa5 {[%clk 0:02:25.5]} 20... Rb5 {[%clk
0:01:26.4]} 21. Nc6 {[%clk 0:02:15.2]} 21... Nc8 {[%clk 0:01:22.6]} 22. Bb2
{[%clk 0:02:12.8]} 22... Ncb6 {[%clk 0:01:15.9]} 23. e4 {[%clk 0:01:58.7]} 23...
Na4 {[%clk 0:01:12.2]} 24. Ba1 {[%clk 0:01:58.4]} 24... Kf8 {[%clk 0:00:49.3]}
25. Bh3 {[%clk 0:01:56]} 25... Ndb6 {[%clk 0:00:38.8]} 26. Rb3 {[%clk
0:01:49.6]} 26... Nc8 {[%clk 0:00:10.3]} 27. Bxc8 {[%clk 0:01:12.2]} 27... Rxc8
{[%clk 0:00:11.2]} 28. Na7 {[%clk 0:01:12.2]} 28... Rxb3 {[%clk 0:00:09.1]} 29.
Nxc8 {[%clk 0:00:49.6]} 29... Rxd3 {[%clk 0:00:08.7]} 30. Nxd6 {[%clk
0:00:50.2]} 30... Ke7 {[%clk 0:00:08.3]} 31. Nc4 {[%clk 0:00:46.3]} 31... f6
{[%clk 0:00:05]} 32. Kf1 {[%clk 0:00:45.8]} 32... Kd7 {[%clk 0:00:04.2]} 33. Ke2
{[%clk 0:00:45.7]} 33... Rd4 {[%clk 0:00:03.6]} 34. Bxd4 {[%clk 0:00:43.8]}
34... cxd4 {[%clk 0:00:04.5]} 35. f4 {[%clk 0:00:43.6]} 35... Nc3+ {[%clk
0:00:02.9]} 36. Kd3 {[%clk 0:00:42.7]} 36... Nxa2 {[%clk 0:00:02.8]} 37. Rb1
{[%clk 0:00:42.6]} 37... Nc3 {[%clk 0:00:02.8]} 38. Rb7+ {[%clk 0:00:41.8]} 1-0

[Event "*** SCC Grand Prix: Titled Tuesday Blitz"]
[Site "Chess.com"]
[Date "2020.06.09"]
[Round "8"]
[White "CzechmVIII"]
[Black "queen_iryna"]
[Result "1-0"]
[WhiteElo "2183"]
[BlackElo "2304"]
[TimeControl "180+1"]
[EndTime "10:35:22 PDT"]
[Termination "CzechmVIII won on time"]

1. e4 {[%clk 0:03:00.9]} 1... d6 {[%clk 0:02:58.4]} 2. d4 {[%clk 0:03:00.2]}
2... Nf6 {[%clk 0:02:59]} 3. Nc3 {[%clk 0:03:00.2]} 3... g6 {[%clk 0:02:58.8]}
4. f4 {[%clk 0:03:00.3]} 4... Bg7 {[%clk 0:02:57.2]} 5. Nf3 {[%clk 0:03:00.5]}
5... O-O {[%clk 0:02:56.8]} 6. Bd3 {[%clk 0:02:59.4]} 6... Na6 {[%clk
0:02:56.7]} 7. O-O {[%clk 0:02:55.5]} 7... c5 {[%clk 0:02:56.8]} 8. d5 {[%clk
0:02:55.8]} 8... Bg4 {[%clk 0:02:54.6]} 9. Bc4 {[%clk 0:02:33.9]} 9... Rb8
{[%clk 0:02:43.6]} 10. h3 {[%clk 0:02:21.6]} 10... Bxf3 {[%clk 0:02:42.8]} 11.
Qxf3 {[%clk 0:02:21.8]} 11... Nb4 {[%clk 0:02:36.4]} 12. Qe2 {[%clk 0:02:04.4]}
12... Nd7 {[%clk 0:01:25.8]} 13. a3 {[%clk 0:02:01.9]} 13... Na6 {[%clk
0:01:25.5]} 14. Bd2 {[%clk 0:01:59.8]} 14... Nc7 {[%clk 0:01:23.9]} 15. Rad1
{[%clk 0:01:52.8]} 15... b5 {[%clk 0:01:21.8]} 16. Nxb5 {[%clk 0:01:40.3]} 16...
Nxb5 {[%clk 0:01:21]} 17. Bxb5 {[%clk 0:01:40.6]} 17... Bxb2 {[%clk 0:01:14.3]}
18. e5 {[%clk 0:01:33.6]} 18... dxe5 {[%clk 0:01:10.3]} 19. Bxd7 {[%clk
0:01:33.1]} 19... Qxd7 {[%clk 0:01:10.3]} 20. fxe5 {[%clk 0:01:31]} 20... Qxd5
{[%clk 0:00:40.6]} 21. Bh6 {[%clk 0:01:21.3]} 21... Qxe5 {[%clk 0:00:31]} 22.
Qxe5 {[%clk 0:01:18.9]} 22... Bxe5 {[%clk 0:00:31.9]} 23. Bxf8 {[%clk
0:01:19.1]} 23... Rxf8 {[%clk 0:00:32.8]} 24. Rd7 {[%clk 0:01:17.1]} 24... Bd6
{[%clk 0:00:24]} 25. Rxa7 {[%clk 0:01:14.2]} 25... c4 {[%clk 0:00:22.3]} 26. Rb7
{[%clk 0:01:10.6]} 26... Bxa3 {[%clk 0:00:20.5]} 27. Rd1 {[%clk 0:01:05.3]}
27... Bd6 {[%clk 0:00:19.2]} 28. Kf1 {[%clk 0:01:05.7]} 28... Ra8 {[%clk
0:00:13]} 29. Rd4 {[%clk 0:00:59.2]} 29... c3 {[%clk 0:00:11.1]} 30. Rc4 {[%clk
0:00:58.6]} 30... Ra1+ {[%clk 0:00:10.7]} 31. Ke2 {[%clk 0:00:58.6]} 31... Ra3
{[%clk 0:00:10.7]} 32. Kd3 {[%clk 0:00:57]} 32... Be5 {[%clk 0:00:08]} 33. Rxe7
{[%clk 0:00:54.4]} 33... Bf6 {[%clk 0:00:08.1]} 34. Rb7 {[%clk 0:00:53.2]} 34...
Ra6 {[%clk 0:00:06.2]} 35. Rd7 {[%clk 0:00:48.2]} 35... Re6 {[%clk 0:00:05.7]}
36. Re4 {[%clk 0:00:46.7]} 36... Rxe4 {[%clk 0:00:04.9]} 37. Kxe4 {[%clk
0:00:46.9]} 37... Kg7 {[%clk 0:00:05]} 38. Kd5 {[%clk 0:00:44.7]} 38... h5
{[%clk 0:00:04.9]} 39. Rb7 {[%clk 0:00:42.5]} 39... Bg5 {[%clk 0:00:04.5]} 40.
Kc6 {[%clk 0:00:40.8]} 40... Bd2 {[%clk 0:00:04.1]} 41. Kd7 {[%clk 0:00:40.7]}
41... Kf6 {[%clk 0:00:03.7]} 42. Ke8 {[%clk 0:00:40.9]} 42... Kg5 {[%clk
0:00:03.4]} 43. Rxf7 {[%clk 0:00:40.7]} 43... Kh4 {[%clk 0:00:02.9]} 44. Rf3
{[%clk 0:00:40.7]} 1-0

[Event "*** SCC Grand Prix: Titled Tuesday Blitz"]
[Site "Chess.com"]
[Date "2020.06.09"]
[Round "8"]
[White "freshfoodcompany"]
[Black "Gromes7"]
[Result "1-0"]
[WhiteElo "2211"]
[BlackElo "2041"]
[TimeControl "180+1"]
[EndTime "10:35:22 PDT"]
[Termination "freshfoodcompany won by resignation"]

1. d4 {[%clk 0:03:00.9]} 1... Nf6 {[%clk 0:02:59.8]} 2. c4 {[%clk 0:03:00.6]}
2... e6 {[%clk 0:03:00.1]} 3. Nc3 {[%clk 0:02:58.7]} 3... Bb4 {[%clk 0:03:00.4]}
4. e3 {[%clk 0:02:58.4]} 4... O-O {[%clk 0:02:59.6]} 5. Bd3 {[%clk 0:02:58.3]}
5... d5 {[%clk 0:02:59.8]} 6. Nf3 {[%clk 0:02:56.2]} 6... c5 {[%clk 0:03:00.2]}
7. O-O {[%clk 0:02:56]} 7... dxc4 {[%clk 0:02:54.4]} 8. Bxc4 {[%clk 0:02:55.6]}
8... b6 {[%clk 0:02:51.3]} 9. a3 {[%clk 0:02:49.8]} 9... Ba5 {[%clk 0:02:50.8]}
10. Ne5 {[%clk 0:02:38.3]} 10... Bb7 {[%clk 0:02:41.2]} 11. Rb1 {[%clk
0:02:31.3]} 11... cxd4 {[%clk 0:02:33]} 12. exd4 {[%clk 0:02:27.3]} 12... Bxc3
{[%clk 0:02:29.5]} 13. bxc3 {[%clk 0:02:26.8]} 13... Qc7 {[%clk 0:02:29.4]} 14.
Qb3 {[%clk 0:02:10.8]} 14... Nc6 {[%clk 0:02:26.8]} 15. Nxc6 {[%clk 0:02:07.4]}
15... Bxc6 {[%clk 0:02:23.5]} 16. h3 {[%clk 0:01:58.4]} 16... Qb7 {[%clk
0:02:21.3]} 17. f3 {[%clk 0:01:54.9]} 17... Rac8 {[%clk 0:02:20.3]} 18. Bg5
{[%clk 0:01:52.8]} 18... Nd5 {[%clk 0:02:18.6]} 19. Rbc1 {[%clk 0:01:41]} 19...
h6 {[%clk 0:02:18.3]} 20. Bd2 {[%clk 0:01:39.5]} 20... b5 {[%clk 0:02:17.1]} 21.
Be2 {[%clk 0:01:36.1]} 21... a6 {[%clk 0:02:13.5]} 22. Rb1 {[%clk 0:01:35.5]}
22... Nb6 {[%clk 0:02:12.3]} 23. Rfc1 {[%clk 0:01:31.8]} 23... Bd5 {[%clk
0:02:11.8]} 24. c4 {[%clk 0:01:23]} 24... Bxc4 {[%clk 0:02:11.4]} 25. Bxc4
{[%clk 0:01:22.5]} 25... Nxc4 {[%clk 0:02:00]} 26. Rxc4 {[%clk 0:01:21.9]} 26...
Rxc4 {[%clk 0:01:58.1]} 27. Qxc4 {[%clk 0:01:21.7]} 27... Qxf3 {[%clk
0:01:35.8]} 28. gxf3 {[%clk 0:01:17.4]} 28... bxc4 {[%clk 0:01:36.1]} 29. Bf4
{[%clk 0:01:15.4]} 29... Rd8 {[%clk 0:01:26.8]} 30. Rb8 {[%clk 0:01:14.9]} 30...
Rxb8 {[%clk 0:01:22.9]} 31. Bxb8 {[%clk 0:01:14.1]} 31... Kf8 {[%clk 0:01:23.3]}
32. Kf2 {[%clk 0:01:09.8]} 32... Ke8 {[%clk 0:01:23.2]} 33. Ke3 {[%clk
0:01:09.7]} 33... Kd7 {[%clk 0:01:23.3]} 34. Kd2 {[%clk 0:01:09.1]} 34... Kc6
{[%clk 0:01:22.1]} 35. Kc3 {[%clk 0:01:08.3]} 35... Kd5 {[%clk 0:01:19.6]} 36.
Bf4 {[%clk 0:01:04.1]} 36... h5 {[%clk 0:01:17.4]} 37. h4 {[%clk 0:01:01.6]}
37... g6 {[%clk 0:01:15.4]} 38. Be5 {[%clk 0:01:00.5]} 38... a5 {[%clk
0:00:51.2]} 39. a4 {[%clk 0:00:57.3]} 39... g5 {[%clk 0:00:35]} 40. hxg5 {[%clk
0:00:55]} 40... h4 {[%clk 0:00:35.4]} 41. Bc7 {[%clk 0:00:49.8]} 41... h3 {[%clk
0:00:32.3]} 42. Bh2 {[%clk 0:00:48.1]} 42... e5 {[%clk 0:00:27.4]} 43. Bxe5
{[%clk 0:00:43.5]} 43... Ke6 {[%clk 0:00:27.1]} 44. Kxc4 {[%clk 0:00:41.5]}
44... Kf5 {[%clk 0:00:27.4]} 45. Bh2 {[%clk 0:00:39.9]} 45... Kxg5 {[%clk
0:00:27.6]} 46. d5 {[%clk 0:00:40]} 46... Kf5 {[%clk 0:00:26.3]} 47. d6 {[%clk
0:00:40]} 47... Ke6 {[%clk 0:00:26.5]} 48. Kb5 {[%clk 0:00:40.4]} 48... f5
{[%clk 0:00:22.9]} 49. Kxa5 {[%clk 0:00:39.9]} 1-0

[Event "*** SCC Grand Prix: Titled Tuesday Blitz"]
[Site "Chess.com"]
[Date "2020.06.09"]
[Round "8"]
[White "gumimis"]
[Black "Nara_Kh"]
[Result "1-0"]
[WhiteElo "2157"]
[BlackElo "2257"]
[TimeControl "180+1"]
[EndTime "10:35:24 PDT"]
[Termination "gumimis won on time"]

1. e4 {[%clk 0:03:00.7]} 1... d6 {[%clk 0:02:57.9]} 2. d4 {[%clk 0:03:00.7]}
2... Nf6 {[%clk 0:02:56.6]} 3. Nc3 {[%clk 0:03:00.8]} 3... g6 {[%clk 0:02:56.2]}
4. Bg5 {[%clk 0:03:00.8]} 4... h6 {[%clk 0:02:55.2]} 5. Bxf6 {[%clk 0:02:58.6]}
5... exf6 {[%clk 0:02:54.4]} 6. f4 {[%clk 0:02:56.4]} 6... f5 {[%clk 0:02:37.4]}
7. e5 {[%clk 0:02:53.5]} 7... dxe5 {[%clk 0:02:25.6]} 8. dxe5 {[%clk 0:02:53]}
8... Be7 {[%clk 0:02:12.8]} 9. Qxd8+ {[%clk 0:02:48.7]} 9... Bxd8 {[%clk
0:02:11.7]} 10. Bc4 {[%clk 0:02:46.1]} 10... O-O {[%clk 0:02:09]} 11. O-O-O
{[%clk 0:02:43.8]} 11... Nc6 {[%clk 0:01:58.3]} 12. Nf3 {[%clk 0:02:42.5]} 12...
Na5 {[%clk 0:01:45.3]} 13. Be2 {[%clk 0:02:28.4]} 13... b6 {[%clk 0:01:38]} 14.
h4 {[%clk 0:02:11.2]} 14... Bb7 {[%clk 0:01:15]} 15. h5 {[%clk 0:02:07.1]} 15...
Be7 {[%clk 0:01:05]} 16. hxg6 {[%clk 0:02:04.8]} 16... fxg6 {[%clk 0:00:57]} 17.
Rxh6 {[%clk 0:02:04.6]} 17... Kg7 {[%clk 0:00:51.1]} 18. Rhh1 {[%clk 0:01:44.3]}
18... Rh8 {[%clk 0:00:41]} 19. Rxh8 {[%clk 0:01:18.9]} 19... Kxh8 {[%clk
0:00:39.8]} 20. Rd7 {[%clk 0:01:17.2]} 20... Bc5 {[%clk 0:00:36.4]} 21. g3
{[%clk 0:01:00.2]} 21... Bc6 {[%clk 0:00:20.2]} 22. Rxc7 {[%clk 0:00:54.6]}
22... Rd8 {[%clk 0:00:16.5]} 23. a3 {[%clk 0:00:43.4]} 23... Be3+ {[%clk
0:00:15.5]} 24. Kb1 {[%clk 0:00:43.5]} 24... Bxf3 {[%clk 0:00:14.1]} 25. Bxf3
{[%clk 0:00:41.4]} 25... Kg8 {[%clk 0:00:12.1]} 26. b4 {[%clk 0:00:39.3]} 26...
Bd2 {[%clk 0:00:08.6]} 27. bxa5 {[%clk 0:00:37.9]} 27... bxa5 {[%clk 0:00:08.9]}
28. Nd5 {[%clk 0:00:30.4]} 28... Rb8+ {[%clk 0:00:03.9]} 29. Ka2 {[%clk
0:00:30.3]} 29... Be1 {[%clk 0:00:02.5]} 30. Nf6+ {[%clk 0:00:26.1]} 30... Kf8
{[%clk 0:00:02.5]} 31. Bd5 {[%clk 0:00:24.9]} 1-0

[Event "*** SCC Grand Prix: Titled Tuesday Blitz"]
[Site "Chess.com"]
[Date "2020.06.09"]
[Round "8"]
[White "Semetey"]
[Black "theblitzchamp"]
[Result "1-0"]
[WhiteElo "2551"]
[BlackElo "2687"]
[TimeControl "180+1"]
[EndTime "10:35:26 PDT"]
[Termination "Semetey won by checkmate"]

1. Nf3 {[%clk 0:01:57.4]} 1... Nf6 {[%clk 0:02:58.3]} 2. d4 {[%clk 0:01:56.1]}
2... g6 {[%clk 0:02:57.3]} 3. Bf4 {[%clk 0:01:56.5]} 3... d6 {[%clk 0:02:53.4]}
4. e3 {[%clk 0:01:56.8]} 4... Nbd7 {[%clk 0:02:52.5]} 5. h3 {[%clk 0:01:57.2]}
5... Bg7 {[%clk 0:02:52.2]} 6. Bh2 {[%clk 0:01:57.6]} 6... O-O {[%clk
0:02:51.4]} 7. Be2 {[%clk 0:01:58.2]} 7... c6 {[%clk 0:02:51.4]} 8. O-O {[%clk
0:01:57.7]} 8... Re8 {[%clk 0:02:50.2]} 9. c4 {[%clk 0:01:57.4]} 9... c5 {[%clk
0:02:22.1]} 10. Nc3 {[%clk 0:01:56.7]} 10... a6 {[%clk 0:02:19.8]} 11. Qd2
{[%clk 0:01:52.1]} 11... b6 {[%clk 0:02:17.9]} 12. Rad1 {[%clk 0:01:44.2]} 12...
Bb7 {[%clk 0:02:17.8]} 13. d5 {[%clk 0:01:44.4]} 13... Rb8 {[%clk 0:02:16.3]}
14. a4 {[%clk 0:01:43.7]} 14... h6 {[%clk 0:02:14.5]} 15. e4 {[%clk 0:01:41.8]}
15... Nf8 {[%clk 0:01:58.4]} 16. Rfe1 {[%clk 0:01:38.4]} 16... g5 {[%clk
0:01:57.8]} 17. e5 {[%clk 0:01:34.3]} 17... dxe5 {[%clk 0:01:54.2]} 18. Nxe5
{[%clk 0:01:35.2]} 18... Rc8 {[%clk 0:01:49.3]} 19. f4 {[%clk 0:01:06.9]} 19...
N6h7 {[%clk 0:01:15.7]} 20. Bh5 {[%clk 0:01:02.1]} 20... Bxe5 {[%clk 0:01:08.1]}
21. Rxe5 {[%clk 0:01:00.7]} 21... e6 {[%clk 0:01:01.4]} 22. fxg5 {[%clk
0:00:53]} 22... hxg5 {[%clk 0:00:57]} 23. Rf1 {[%clk 0:00:31.6]} 23... Ng6
{[%clk 0:00:42.2]} 24. Bxg6 {[%clk 0:00:28.8]} 24... fxg6 {[%clk 0:00:43.1]} 25.
Qc2 {[%clk 0:00:24.1]} 25... Kg7 {[%clk 0:00:32.7]} 26. dxe6 {[%clk 0:00:17.4]}
26... Qd4+ {[%clk 0:00:31.6]} 27. Kh1 {[%clk 0:00:17.7]} 27... Rf8 {[%clk
0:00:29.2]} 28. Qe2 {[%clk 0:00:15.7]} 28... Rxf1+ {[%clk 0:00:26.2]} 29. Qxf1
{[%clk 0:00:16.6]} 29... Rf8 {[%clk 0:00:26.6]} 30. Qe1 {[%clk 0:00:16.6]} 30...
Rf2 {[%clk 0:00:22.1]} 31. Rxg5 {[%clk 0:00:16.5]} 31... Nxg5 {[%clk 0:00:18.5]}
32. Be5+ {[%clk 0:00:16.4]} 32... Kh7 {[%clk 0:00:15.6]} 33. Bxd4 {[%clk
0:00:16.4]} 33... Bxg2+ {[%clk 0:00:16.2]} 34. Kg1 {[%clk 0:00:16.2]} 34...
Nxh3+ {[%clk 0:00:15.3]} 35. Kh2 {[%clk 0:00:16.1]} 35... Rxb2 {[%clk
0:00:14.5]} 36. Qh4+ {[%clk 0:00:15.2]} 36... Kg8 {[%clk 0:00:13.6]} 37. Qh8#
{[%clk 0:00:16.1]} 1-0

[Event "*** SCC Grand Prix: Titled Tuesday Blitz"]
[Site "Chess.com"]
[Date "2020.06.09"]
[Round "8"]
[White "Future2700"]
[Black "harlem4brew"]
[Result "1-0"]
[WhiteElo "2404"]
[BlackElo "2213"]
[TimeControl "180+1"]
[EndTime "10:35:26 PDT"]
[Termination "Future2700 won by checkmate"]

1. e4 {[%clk 0:02:56.7]} 1... c5 {[%clk 0:02:59.2]} 2. Nf3 {[%clk 0:02:56.1]}
2... Nc6 {[%clk 0:02:58]} 3. d4 {[%clk 0:02:56.4]} 3... cxd4 {[%clk 0:02:56.8]}
4. Nxd4 {[%clk 0:02:57.3]} 4... Nf6 {[%clk 0:02:55.8]} 5. Nc3 {[%clk 0:02:57.8]}
5... g6 {[%clk 0:02:53.3]} 6. Nxc6 {[%clk 0:02:57.2]} 6... bxc6 {[%clk
0:02:52.7]} 7. e5 {[%clk 0:02:57]} 7... Nd5 {[%clk 0:02:41.3]} 8. Nxd5 {[%clk
0:02:56.5]} 8... cxd5 {[%clk 0:02:42.2]} 9. Qxd5 {[%clk 0:02:57.3]} 9... Rb8
{[%clk 0:02:40.4]} 10. Bc4 {[%clk 0:02:57.8]} 10... e6 {[%clk 0:02:39.1]} 11.
Qd3 {[%clk 0:02:56.5]} 11... Qa5+ {[%clk 0:02:36.7]} 12. c3 {[%clk 0:02:49.5]}
12... Qxe5+ {[%clk 0:02:35.9]} 13. Be3 {[%clk 0:02:46.6]} 13... Bg7 {[%clk
0:02:33.3]} 14. O-O {[%clk 0:02:46]} 14... O-O {[%clk 0:02:32.7]} 15. Bxa7
{[%clk 0:02:35.1]} 15... Rxb2 {[%clk 0:02:30]} 16. Bd4 {[%clk 0:02:35.7]} 16...
Qd6 {[%clk 0:02:27.1]} 17. Rfd1 {[%clk 0:02:33.5]} 17... Bxd4 {[%clk 0:02:19.5]}
18. cxd4 {[%clk 0:02:32]} 18... Qf4 {[%clk 0:02:16.6]} 19. Qe3 {[%clk
0:02:26.2]} 19... Qxe3 {[%clk 0:02:15.1]} 20. fxe3 {[%clk 0:02:27.1]} 20... d5
{[%clk 0:02:14.4]} 21. Bd3 {[%clk 0:02:20]} 21... Bd7 {[%clk 0:02:12.8]} 22. a4
{[%clk 0:02:19.6]} 22... Ra8 {[%clk 0:02:11.6]} 23. a5 {[%clk 0:02:20]} 23...
Bb5 {[%clk 0:02:08.6]} 24. a6 {[%clk 0:02:06.6]} 24... Ra7 {[%clk 0:02:01.6]}
25. Ra5 {[%clk 0:02:00.3]} 25... Bxd3 {[%clk 0:01:59]} 26. Rxd3 {[%clk
0:02:01.2]} 26... Rb1+ {[%clk 0:01:58.3]} 27. Kf2 {[%clk 0:02:00.8]} 27... Rb2+
{[%clk 0:01:57.8]} 28. Kf3 {[%clk 0:02:01.1]} 28... Rb6 {[%clk 0:01:56.7]} 29.
Rda3 {[%clk 0:02:00.2]} 29... Kg7 {[%clk 0:01:56]} 30. Kf4 {[%clk 0:01:59.4]}
30... Kf6 {[%clk 0:01:55]} 31. h4 {[%clk 0:01:58.5]} 31... h6 {[%clk 0:01:54.4]}
32. g4 {[%clk 0:01:55.2]} 32... g5+ {[%clk 0:01:52.7]} 33. Kg3 {[%clk
0:01:55.5]} 33... Ke7 {[%clk 0:01:48.1]} 34. Ra2 {[%clk 0:01:50.1]} 34... Rd6
{[%clk 0:01:43.9]} 35. h5 {[%clk 0:01:47.1]} 35... f5 {[%clk 0:01:38.7]} 36. Kf3
{[%clk 0:01:46]} 36... Kf6 {[%clk 0:01:36]} 37. R5a3 {[%clk 0:01:35.3]} 37...
Rb6 {[%clk 0:01:24.9]} 38. Kg3 {[%clk 0:01:29.9]} 38... Rb1 {[%clk 0:01:21.9]}
39. Rc3 {[%clk 0:00:55.9]} 39... Rg1+ {[%clk 0:01:18.8]} 40. Kf2 {[%clk
0:00:56.1]} 40... Rxg4 {[%clk 0:01:18.1]} 41. Rb3 {[%clk 0:00:56.3]} 41... Rh4
{[%clk 0:01:17.8]} 42. Kg2 {[%clk 0:00:51.6]} 42... Rf4 {[%clk 0:01:13]} 43.
exf4 {[%clk 0:00:51.4]} 43... gxf4 {[%clk 0:01:11.2]} 44. Rb7 {[%clk 0:00:50.9]}
44... Ra8 {[%clk 0:01:09.8]} 45. a7 {[%clk 0:00:51.4]} 45... Rg8+ {[%clk
0:01:06.1]} 46. Kf3 {[%clk 0:00:51.6]} 46... Rg3+ {[%clk 0:01:04]} 47. Kf2
{[%clk 0:00:51.6]} 47... Kg5 {[%clk 0:00:54.5]} 48. a8=Q {[%clk 0:00:50.5]}
48... Kg4 {[%clk 0:00:52.8]} 49. Rg7+ {[%clk 0:00:42.6]} 49... Kh3 {[%clk
0:00:51.4]} 50. Rxg3+ {[%clk 0:00:43.5]} 50... fxg3+ {[%clk 0:00:52.3]} 51. Kf3
{[%clk 0:00:43.9]} 51... f4 {[%clk 0:00:50.3]} 52. Kxf4 {[%clk 0:00:38.4]} 52...
g2 {[%clk 0:00:48.3]} 53. Qa3+ {[%clk 0:00:37.2]} 53... Kh4 {[%clk 0:00:49]} 54.
Qg3+ {[%clk 0:00:37.2]} 54... Kxh5 {[%clk 0:00:49.9]} 55. Qg4# {[%clk 0:00:36]}
1-0